Cogmind - Beta 14 @@@ ROGUE MODE // 2025.03.07 @ 18:12:42 Player: SovietPaperclip Result: Destroyed by as-55883 with Assembled Maul Performance ------------- Evolutions (0) 0 Regions Visited (4) 800 Robots Destroyed (19) 95 Value Destroyed (631) 631 Prototype IDs (23) 460 Alien Tech Used (0) 0 Bonus (300) 300 TOTAL SCORE: 2286 Bonus ------- Aligned with FarCom 300 Cogmind --------- Core Integrity 0/250 Matter 286/300 Energy 159/160 System Corruption 0% Temperature Cool (0) Movement Walking (90) Location -9/Mines Parts ------- > --- POWER (1) -------- Light Nuclear Core > --- PROPULSION (2) --- Potential Leg Potential Leg > --- UTILITY (2) ------ Medium Storage Unit Hardened Light Armor Plating > --- WEAPON (2) ------- Light Assault Rifle Grenade Launcher > --- INVENTORY (10) --- High-capacity Matter Pod (200) Experimental Sensor Array Seismic Detector Trap Reconfigurator Army-in-a-Box (30/30) Peak State ------------ > --- POWER ------------ Light Nuclear Core > --- PROPULSION ------- Potential Leg Potential Leg > --- UTILITY ---------- Medium Storage Unit Hardened Light Armor Plating > --- WEAPON ----------- Light Assault Rifle Grenade Launcher > --- INVENTORY -------- High-capacity Matter Pod Experimental Sensor Array Seismic Detector Trap Reconfigurator Army-in-a-Box [Rating: 35] Favorites ----------- Power Ion Engine Engine Ion Engine Power Core Light Nuclear Core Propulsion Aluminum Leg Treads Light Treads Leg Aluminum Leg Utility Medium Storage Unit Device Seismic Detector Storage Medium Storage Unit Protection Hardened Light Armor Plating Weapon Light Assault Rifle Ballistic Gun Light Assault Rifle Launcher Grenade Launcher Build | -11 -10 -10 -10 -9 ------- Run | Yrd Mat Min Exi Min Slots Evolved . | . . . . . Power . | . . . . . Propulsion . | . . . . . Utility . | . . . . . Weapon . | . . . . . Parts Attached 21 | 6 6 3 6 . Power 2 | 1 . . 1 . Engine 1 | 1 . . . . Core 1 | . . . 1 . Reactor . | . . . . . Propulsion 6 | 2 2 . 2 . Treads 2 | 2 . . . . Leg 4 | . 2 . 2 . Wheel . | . . . . . Hover . | . . . . . Flight . | . . . . . Utility 7 | 1 3 . 3 . Device 1 | . 1 . . . Storage 4 | 1 1 . 2 . Processor . | . . . . . Hackware . | . . . . . Protection 2 | . 1 . 1 . Artifact . | . . . . . Weapon 6 | 2 1 3 . . Energy Gun . | . . . . . Energy Cannon . | . . . . . Ballistic Gun 4 | 2 1 1 . . Ballistic Cannon . | . . . . . Launcher 2 | . . 2 . . Special Weapon . | . . . . . Impact Weapon . | . . . . . Slashing Weapon . | . . . . . Piercing Weapon . | . . . . . Special Melee Weapon . | . . . . . Unidentified Prototypes . | . . . . . Parts Lost 2 | . 2 . . . Power . | . . . . . Propulsion 1 | . 1 . . . Utility . | . . . . . Weapon 1 | . 1 . . . Highest Loss Streak 2 | . 2 . . . To Critical Strikes . | . . . . . Average Slot Usage (%) 98 | . 98 100 95 100 Engine 11 | . 14 14 8 . Core 2 | . . . 5 14 Treads 9 | . 23 . . . Leg 17 | . 3 28 28 28 Device 2 | . 5 . . . Storage 16 | . 19 14 13 14 Protection 8 | . 2 14 10 14 Ballistic Gun 21 | . 28 20 14 14 Launcher 6 | . . 7 14 14 Peak Build Rating 35 | 6 9 10 35 35 Average Rating 11 | 4 7 9 12 35 On Entrance 12 | . 6 9 10 35 Naked Turns . | . . . . . Heaviest Build 24 | 13 23 24 24 24 Greatest Support 60 | 40 40 20 60 60 Greatest Overweight (x) 1 | . 1 1 1 . Average Overweight (x) . | . . 1 . . Largest Inventory Capacity 35 | 8 10 10 35 10 Average Capacity 9 | 7 9 10 10 10 Most Carried 10 | 5 10 9 10 10 Average Carried 7 | . 5 8 8 10 Final Capacity 10 | 8 10 10 10 10 Final Carried 10 | . 8 9 10 10 Class Distribution -------------------- 93% | Mutant 6% | Scavenger-Mutant Dominant Class ---------------- Mutant | -10/Materials Mutant | -10/Mines Mutant | -10/Exiles Mutant | -9/Mines Resources | -11 -10 -10 -10 -9 ----------- Run | Yrd Mat Min Exi Min Matter Collected 946 | 240 313 43 320 30 Remotely . | . . . . . Salvage Created 683 | . 541 142 . . Parts 39 | . 32 7 . . Haulers Intercepted . | . . . . . Recyclers Shooed 1 | . 1 . . . Parts Field Recycled . | . . . . . Retrieved Matter . | . . . . . Parts Self-Destructed . | . . . . . Prevented . | . . . . . Kills | -11 -10 -10 -10 -9 ------- Run | Yrd Mat Min Exi Min Combat Hostiles Destroyed 19 | . 14 5 . . Guns 16 | . 14 2 . . AOE 3 | . . 3 . . Classes Destroyed 4 | . 3 1 . . Mechanic 1 | . 1 . . . Swarmer 3 | . 3 . . . Grunt 15 | . 11 4 . . Assembled 1 | . . 1 . . Best Kill Streak 5 | . 5 2 . . Combat Bots Only 5 | . 5 2 . . Max Kills in Single Turn 2 | . 2 2 . . Gunslinging 1 | . 1 . . . Exploded 2 | . . 2 . . Melee . | . . . . . Uniques/NPCs Destroyed . | . . . . . Combat | -11 -10 -10 -10 -9 -------- Run | Yrd Mat Min Exi Min Hostile Shots Fired 99 | . 74 22 . 3 Missed 23 | . 18 5 . . Damage Taken 1110 | . 721 293 . 96 Core 261 | . 151 65 . 45 Absorbed by Shields . | . . . . . Core Remaining (%) 100 | 100 . . . . Volleys Fired 90 | . 64 21 . 5 Largest 2 | . 2 2 . 1 Hottest 40 | . 40 40 . 30 Shots Fired 165 | . 128 32 . 5 Gun 154 | . 128 22 . 4 Cannon . | . . . . . Launcher 11 | . . 10 . 1 Special . | . . . . . Kinetic 154 | . 128 22 . 4 Thermal . | . . . . . Explosive 11 | . . 10 . 1 Electromagnetic . | . . . . . Robot Hit Streak 17 | . 17 6 . 4 Robot Miss Streak 3 | . 3 2 . 1 Penetration Max . | . . . . . Secondary Targets 1 | . 1 . . . Max Gunslinging Chain 1 | . 1 . . . Shots Hit Robots 107 | . 88 17 . 2 Core Hits 51 | . 37 12 . 2 Critical Kills . | . . . . . Critical Parts Destroyed . | . . . . . Critical Strikes . | . . . . . Melee Attacks . | . . . . . Impact . | . . . . . Slashing . | . . . . . Piercing . | . . . . . Sneak Attacks . | . . . . . Combat Hostiles . | . . . . . Follow-up Attacks . | . . . . . Damage Inflicted 1289 | . 896 339 . 54 Guns 1030 | . 896 120 . 14 Cannons . | . . . . . Explosions 259 | . . 219 . 40 Melee . | . . . . . Ramming . | . . . . . Kinetic 1030 | . 896 120 . 14 Thermal . | . . . . . Explosive 259 | . . 219 . 40 Electromagnetic . | . . . . . Impact . | . . . . . Slashing . | . . . . . Piercing . | . . . . . Highest Corruption . | . . . . . Average Corruption . | . . . . . Corruption Purged . | . . . . . Corruption Blocked . | . . . . . Overload Shots . | . . . . . Overflow Damage . | . . . . . Projectiles . | . . . . . Explosions . | . . . . . Melee . | . . . . . Knockbacks . | . . . . . Impact . | . . . . . Kinetic . | . . . . . Secondary . | . . . . . Self-Inflicted Damage 90 | . . 81 . 9 Shots 5 | . . 4 . 1 Rammed . | . . . . . Targets Rammed . | . . . . . Kicked . | . . . . . Crushed . | . . . . . Highest Temperature 147 | . 147 79 . 24 Average Temperature 39 | . 43 33 . 12 Received Heat Transfer 501 | . 399 102 . . Siege Activations . | . . . . . Robots Corrupted . | . . . . . Combat Hostiles . | . . . . . Parts Fried . | . . . . . Impact Corruptions . | . . . . . Robots Melted . | . . . . . Combat Hostiles . | . . . . . Parts Melted . | . . . . . Heat Transferred . | . . . . . Parts Sabotaged . | . . . . . Parts Stolen . | . . . . . Parts Stripped . | . . . . . Power Chain Reactions . | . . . . . Alert | -11 -10 -10 -10 -9 ------- Run | Yrd Mat Min Exi Min Peak Influence 227 | . 227 188 . 9 Initial 33 | . . 33 . . Average 83 | . 98 98 . . Maximum Alert Level 1 | . 1 . . . Low Security (%) 94 | 100 90 100 . 100 Level 1 5 | . 9 . . . Level 2 . | . . . . . Level 3 . | . . . . . Level 4 . | . . . . . Level 5 . | . . . . . High Security . | . . . . . Max Security . | . . . . . Squads Dispatched . | . . . . . Investigation . | . . . . . Extermination . | . . . . . Reinforcement . | . . . . . Assault . | . . . . . Garrison . | . . . . . Intercept . | . . . . . Searches Triggered . | . . . . . Construction Impeded . | . . . . . Haulers Reinforced . | . . . . . Active Scanning Responses . | . . . . . Cargo Convoy Interrupts . | . . . . . Stealth | -11 -10 -10 -10 -9 --------- Run | Yrd Mat Min Exi Min Distress Signals 2 | . 2 . . . Communications Jammed . | . . . . . Distress Signals . | . . . . . Times Spotted 30 | . 23 5 . 2 Peak Tracking Total 6 | . 6 2 . 2 Tactical Retreats . | . . . . . Traps | -11 -10 -10 -10 -9 ------- Run | Yrd Mat Min Exi Min Traps Triggered . | . . . . . Indirectly . | . . . . . Trap Hack Attempts . | . . . . . Triggered . | . . . . . Disarmed . | . . . . . Reprogrammed . | . . . . . Reused . | . . . . . Traps Extracted . | . . . . . Installed . | . . . . . Triggered . | . . . . . Machines | -11 -10 -10 -10 -9 ---------- Run | Yrd Mat Min Exi Min Machines Disabled . | . . . . . Max in Single Turn . | . . . . . Machines Repaired . | . . . . . Machines Dismantled . | . . . . . Machines Sabotaged . | . . . . . Overloaded Fab Kills . | . . . . . Hacking | -11 -10 -10 -10 -9 --------- Run | Yrd Mat Min Exi Min Machines Accessed 7 | . 4 . 2 1 Terminals 4 | . 4 . . . Fabricators . | . . . . . Repair Stations . | . . . . . Recycling Units . | . . . . . Scanalyzers . | . . . . . Garrison Access . | . . . . . Total Hacks 10 | . 7 . 2 1 Successful 6 | . 3 . 2 1 Failed 4 | . 4 . . . Catastrophic 1 | . 1 . . . Database Lockouts . | . . . . . Manual 1 | . . . 1 . Terminals 7 | . 7 . . . Fabricators . | . . . . . Repair Stations . | . . . . . Recycling Units . | . . . . . Scanalyzers . | . . . . . Garrison Access . | . . . . . Terminal Hacks 6 | . 3 . 2 1 Record 1 | . . . 1 . Robot Analysis 1 | . 1 . . . Open Door 1 | . . . . 1 Branch Access Points 1 | . 1 . . . Zone Layout 1 | . 1 . . . Derelict Proto ID Bank 1 | . . . 1 . Fabricator Hacks . | . . . . . Repair Station Hacks . | . . . . . Recycling Unit Hacks . | . . . . . Scanalyzer . | . . . . . Garrison Access Hacks . | . . . . . Unauthorized Hacks . | . . . . . Terminals . | . . . . . Fabricators . | . . . . . Repair Stations . | . . . . . Recycling Units . | . . . . . Scanalyzers . | . . . . . Garrison Access . | . . . . . Data Cores Recovered . | . . . . . Used . | . . . . . Hacking Detections 4 | . 4 . . . Full Trace Events . | . . . . . Feedback Events . | . . . . . Feedback Blocked . | . . . . . Robot Schematics Acquired . | . . . . . Robots Built . | . . . . . Authchips . | . . . . . Time . | . . . . . Total Robot Build Rating . | . . . . . Part Schematics Acquired . | . . . . . Parts Built . | . . . . . Authchips . | . . . . . Time . | . . . . . Total Part Build Rating . | . . . . . Parts Repaired . | . . . . . Time . | . . . . . Parts Recycled . | . . . . . Recycled Matter . | . . . . . Retrieved Matter . | . . . . . Retrieved Components . | . . . . . Parts Scanalyzed . | . . . . . Part Schematics Acquired . | . . . . . Parts Damaged . | . . . . . Bothacking | -11 -10 -10 -10 -9 ------------ Run | Yrd Mat Min Exi Min Used RIF Installer . | . . . . . Robots Hacked . | . . . . . Non-combat . | . . . . . Combat . | . . . . . Robot Hacks Applied . | . . . . . Relay Couplers Released . | . . . . . Fabnet Peak Effective % . | . . . . . Robots Rewired . | . . . . . Allies Hacked . | . . . . . Hacks Repelled . | . . . . . Allies | -11 -10 -10 -10 -9 -------- Run | Yrd Mat Min Exi Min Total Allies . | . . . . . Largest Group . | . . . . . Highest-Rated Group . | . . . . . Highest-Rated Ally . | . . . . . Total Orders . | . . . . . Ally Attacks . | . . . . . Total Damage . | . . . . . Kills . | . . . . . Allies Corrupted . | . . . . . Allies Melted . | . . . . . Intel | -11 -10 -10 -10 -9 ------- Run | Yrd Mat Min Exi Min Robot Analysis Total 1 | . 1 . . . Derelict Logs Recovered 3 | . . 2 . 1 Drone Launches . | . . . . . Drone Recoveries . | . . . . . Exploration | -11 -10 -10 -10 -9 ------------- Run | Yrd Mat Min Exi Min Turns Passed 2275 | 55 923 449 669 179 Spaces Moved 1246 | 34 391 195 436 190 Core 9 | 9 . . . . Treads 358 | 25 333 . . . Legs 879 | . 58 195 436 190 Wheels . | . . . . . Hover . | . . . . . Flight . | . . . . . Fastest Speed 50 | 50 160 190 90 90 Average Speed 150 | 130 165 190 148 90 Slowest Speed 240 | 160 240 190 190 90 Overloaded Moves . | . . . . . Propulsion Burnouts . | . . . . . Robots Hopped . | . . . . . Cave-ins Triggered . | . . . . . Exploration Rate (%) 53 | 5 88 57 72 47 Regions Visited 4 Branch Regions 3 Pre-discovered Areas 1 | . . . 1 . Known Exits Taken 1 | . 1 . . . Unknown Exits Taken 3 | 1 . 1 1 . Scrap Searched 2 | . . 1 . 1 Spaces Dug 45 | . . 36 . 9 Terrain Destroyed 71 | . . 62 . 9 Melee . | . . . . . Projectile . | . . . . . AOE 71 | . . 62 . 9 Terrain Rammed . | . . . . . Walls Destroyed . | . . . . . Machines Disabled . | . . . . . Actions | -11 -10 -10 -10 -9 --------- Run | Yrd Mat Min Exi Min Total 1501 | 44 556 245 461 195 Wait 107 | . 81 26 . . Move 1242 | 33 390 194 435 190 Hop . | . . . . . Pick Up 27 | 5 12 1 9 . Fast Attach 3 | 1 2 . . . Attach 9 | 5 1 . 3 . Detach . | . . . . . Swap 9 | . 3 3 3 . Drop 14 | . 3 . 11 . Fire 90 | . 64 21 . 5 Melee . | . . . . . Ram . | . . . . . Kick . | . . . . . Crush . | . . . . . Escape Stasis . | . . . . . Rewire . | . . . . . Trap . | . . . . . Miscellaneous . | . . . . . Route ------- -11/Scrapyard -10/Materials (discovered 4 exits: [*Mat x2] / *Min x2) -10/Mines (discovered 3 exits: [*Mat x2] / *Exi) -10/Exiles -9/Mines History --------- Turn | Location | Event 10 | -11/Scrapyard | Discovered new exit (range 15) 56 | -11/Scrapyard | Entered Materials 303 | -10/Materials | Discovered new exit (range 7) 307 | -10/Materials | Build established: Mutant 344 | -10/Materials | Identified exit to Mines 613 | -10/Materials | Discovered new exit (range 13) 706 | -10/Materials | Discovered new exit (range 15) 756 | -10/Materials | Derelicts attacked the area 833 | -10/Materials | Core integrity fell below 50% 979 | -10/Materials | Entered Mines 1059 | -10/Mines | Excavation squad dispatched 1059 | -10/Mines | A large section of the Mines collapsed 1110 | -10/Mines | Learned Materials terminal intel 1211 | -10/Mines | Found a damaged Exp. Sensor Array with a note attached 1215 | -10/Mines | Found Prototype Device 1228 | -10/Mines | Core integrity fell below 20% 1247 | -10/Mines | Learned Materials trap positions 1280 | -10/Mines | Discovered new exit (range 8) 1324 | -10/Mines | Discovered new exit (range 5) 1421 | -10/Mines | Deemed a non-threat by the Exiles lab entrance 1421 | -10/Mines | Discovered new exit (range 5) 1428 | -10/Mines | Entered Exiles 1476 | -10/Exiles | Met 8R-AWN 1504 | -10/Exiles | Met EX-HEX 1582 | -10/Exiles | Met EX-DEC 1590 | -10/Exiles | Learned location of Zion (-7) 1628 | -10/Exiles | Met EX-BIN 1881 | -10/Exiles | Discovered new exit (range 14) 1965 | -10/Exiles | Aligned with FarCom system 1966 | -10/Exiles | Given EX-Vault access code 1994 | -10/Exiles | Opened EX-Vault 2002 | -10/Exiles | Found Army-in-a-Box 2008 | -10/Exiles | Found Trap Reconfigurator 2011 | -10/Exiles | Found Potential Leg 2014 | -10/Exiles | Found Potential Leg 2032 | -10/Exiles | Warned to stay clear of 0b10 Research branches 2097 | -10/Exiles | Stole three prototypes: Potential Leg, Trap Reconfigurator, Army-in-a-Box 2097 | -10/Exiles | Entered Mines 2105 | -9/Mines | Assembled infested the area 2110 | -9/Mines | Assisted by a Guerilla fighting off Assembled 2258 | -9/Mines | Found the Drone Emporium 2276 | -9/Mines | Destroyed by as-55883 with Assembled Maul Last Messages --------------- 02194_ Searching scrap... 02194_ Found Datajack. 02194_ Found EM Shotgun. 02194_ Found Med. Storage Unit. 02194_ Found 68 Matter. 02195_ Acquired 30 matter. 02195_ Acquired derelict log, extracted data. Data stored: Storage entrances (x1). 02197_ K-01 Serf collects debris. 02257_ Connecting with SHOP.Sys... 02257_ Current location identified: Mines >>Open Door Sealed Doors opened. 02258_ LB-DIY(g): "Well that was anticlimactic. Heard you outside and thought you were from the Merchants Guild. I haven't even officially opened my Drone Emporium yet but am totally ready to tell them where they can shove that C&D." 02260_ LB-DIY(g): "I'm a fan of the free market. Free drones for all! No strings attached!" 02266_ SHOP.Sys disabled. Map ----- +----------------------------------------------------+ | ???????????????????????????????????????## ### # | | ????????????????????????????????????????# # | | ????????????????????????????????????????# #### | | ????????????????????????????????????????# ##????? | | ????????????????????????????????????????# ??????? | | ????????????????????????????????????????# ??????? | | ????????????????????????????????????????# ??????? | | ????????????????????????????????????????# ??????? | | ????????????????????????????????????????# ??????? | | ????????????????????????????????????????# ???????? | | ????????????????????????????????????????# ???????? | | ????????????????????????????????????????# ???????? | | ????????????????????????????????????????# ???????? | | ????????????????????????????????????????# ???????? | | ????????????????????????????????????????#????????? | | ?????????????????????????????????######????????#?? | | ????????????????????????????????##""""##?????? #?? | | ????????????????????????????????#" ! "#?????? #?? | | ????????????????????????????????#" "#?????# ##? | | ?????????????????????????????????# #?????# ## | | ????????????????????????????????### ###???# # | | ??????????????????????????????### #??? # | | ?????????????????????????????## #### #? | | ?????????????????????????????# ### ## #?? | | ????????????????????????###### #?# | | ????????????????????????#@ k #### | | ????????????????????????#a###### ##?# | | ???????????????????????? #????### ##### ###??# | | ???????????????????????? ??????#####???# #?????# | | ???????????????????????# ??????????##### ####### | | ???????????????????????# ??????????# | | ???????????????????????## ??????????# | | ????????????????????????# ##?????????# ########## | | ????????????????????????# #??????????# #????????? | | ????????????????????????? ?????????### #????????? | | ????????????????????????? ?????????# #????????? | | ?????????????????????????#?????????# #????????# | | ???????????????????????????????????# ####??####?## | | ????????????????????????????######## ##???## ### | | ????????????????????????????# """" #???# ! | | ????????????????????????????# """" #???#[ ] | | ????????????????????????????# """" #??## | | ????????????????????????????# #??# !## | | ????????????????????????????# #??# #### | | ????????????????????????????###########??# #??# | | ?????????????????????????????????????????# #??? | | ?????????????????????????????????????????## =##??? | | ??????????????????????????????????????????####???? | | ?????????????????????????????????????????????????? | | ?????????????????????????????????????????????????? | +----------------------------------------------------+ Best States ------------- Heat Dissipation 25 Energy Generation 14 Energy Capacity 250 Matter Stores 300 Matter Capacity 300 Sight Range 16 Terrain Scan Density 10 Armor Coverage 150 Evasion (%) 57 Recoil Reduction 2 Item Schematics ----------------- None Robot Schematics ------------------ None Fabricated ------------ Nothing Alien Tech Used ----------------- None Achievements -------------- None Challenges ------------ None Game ------ Seed MinesnifferUtilityFilter Manual? 0 Play Time 00:13:40 Cumulative 137.7 hours Start 2025.03.07 @ 17:58:36 End 2025.03.07 @ 18:12:42 Sessions 1 Manual Loads 0 Difficulty Rogue Special Mode None Game No. 192 Rogue 192 Adventurer 0 Explorer 0 Win Type - Total 1 Types 1/0/0/0/0/0/0/0/0 Lore% 49 Gallery% 54 Achievement% 51 Wizard Run 0 Options --------- Layout 1 ASCII 0 Keyboard 0 Movement Mouse Keybinds 0 Fullscreen 1 Font 32/SmallcapsGlow Map View 77x35 Zoom Use 0% Tactical HUD 1 Map Filters NONE Filters NONE Steam 1 RUN: 73e9b6ae-9595-4a06-8d2c-762137c6a4a1